[Event "Romanian Team Blitz Open 2022"]
[Site "Sebes"]
[Date "2022.12.04"]
[Round "2.11"]
[White "Ghimpu, Samuel-Timotei"]
[Black "Itkis, Boris"]
[Result "0-1"]
[ECO "C41"]
[WhiteElo "2455"]
[BlackElo "2343"]
[Annotator "TA"]
[PlyCount "60"]
[EventDate "2022.12.04"]
[EventType "blitz"]
[EventCountry "ROU"]
[SourceTitle "playchess.com"]
[Source "ChessBase"]
[SourceQuality "1"]
[TimeControl "180+2"]

{[%evp 19,60,37,48,34,45,12,20,23,42,-97,-90,-90,-110,-124,-102,-158,-145,-164,-148,-177,14,20,18,17,20,21,23,23,21,21,28,16,20,16,24,26,25,0,10,0,0,-11,-24]} 1. e4 {[%emt 0:00:04]} d6 {[%emt 0:00:00]} 2. d4 {[%emt 0:00:02]} Nf6 {[%emt 0:00:01]} 3. Nc3 {[%emt 0:00:01]} e5 {[%emt 0:00:00]} 4. Nf3 {[%emt 0:00:03]} Nbd7 {[%emt 0:00:01]} 5. Bc4 {[%emt 0:00:03]} Be7 {[%emt 0:00:00]} 6. O-O {[%emt 0:00:03]} O-O {[%emt 0:00:01]} 7. Re1 {[%emt 0:00:05]} c6 {[%emt 0:00:01]} 8. a4 {[%emt 0:00:01]} h6 {[%emt 0:00:04]} 9. h3 {[%emt 0:00:03]} Qc7 {[%emt 0:00:00]} 10. Be3 {[%emt 0:00:40]} Re8 {[%emt 0:00:03]} 11. Qd2 {[%emt 0:00:06][%cal Oe3h6] C41: Philidor Defence.} Nf8 {[%emt 0:00:01]} 12. Bd3 {[%emt 0:00:13] [#]} Ng6 $146 {[%emt 0:00:17]} ({Predecessor:} 12... g5 13. Ne2 Ng6 14. Ng3 Nf4 15. Qc3 Bf8 16. dxe5 dxe5 17. Rad1 b6 18. Bb5 Bb7 {½-½ (31) Stevens,L (2014)-Shuben,M Los Angeles 2012}) 13. Ne2 {[%emt 0:00:03]} d5 {[%emt 0:00:12]} 14. dxe5 {[%emt 0:00:14]} (14. Nxe5 $1 $14 {keeps the upper hand.} Nxe5 15. Bf4) 14... Nxe4 $17 {[%emt 0:00:02]} 15. Bxe4 {[%emt 0:00:21]} dxe4 {[%emt 0:00:01]} 16. Nfd4 {[%emt 0:00:02][%cal Oe5e6]} Qxe5 {[%emt 0:00:16]} ({And not} 16... Nxe5 17. Ng3 (17. Bf4 f5 $17)) 17. Ng3 {[%emt 0:00:11]} (17. Rad1 $142) 17... f5 {[%emt 0:00:21]} 18. Nh5 {[%emt 0:00:46] Inhibits f4.} Rd8 {[%emt 0:00:20] Hoping for ...c5.} 19. Qc3 {[%emt 0:00:13]} f4 $2 {[%emt 0:00:22] [#]} ({Black should try} 19... Bd6 $19 {And now ...f4 would win.} 20. f4 Qe7) 20. Nxf4 $1 $11 {[%emt 0:00:02][%mdl 64]} Nxf4 {[%emt 0:00:09] [#]} 21. Nxc6 $1 {[%emt 0:00:02][%mdl 64] Double Attack} Qxc3 {[%emt 0:00:13]} (21... Nxh3+ 22. gxh3) 22. Nxe7+ {[%emt 0:00:01]} Kf7 {[%emt 0:00:03]} 23. bxc3 {[%emt 0:00:02] Threatens to win with Nxc8.} Nxh3+ {[%emt 0:00:54]} 24. gxh3 {[%emt 0:00:01] Strongly threatening Nxc8.} Kxe7 {[%emt 0:00:02]} 25. Bc5+ {[%emt 0:00:01]} Kf7 {[%emt 0:00:01]} 26. Rxe4 {[%emt 0:00:02]} Be6 {[%emt 0:00:04]} 27. Rae1 {[%emt 0:00:05]} Re8 {[%emt 0:00:01]} 28. h4 {[%emt 0:00:17]} b6 {[%emt 0:00:11] The position is equal.} 29. Bd4 {[%emt 0:00:02][%cal Od4g7]} Bf5 {[%emt 0:00:09]} 30. Re5 {[%emt 0:00:09]} Bxc2 {[%emt 0:00:07][%mdl 32768] Weighted Error Value: White=0.21 (precise) /Black=0.19 (very precise) . Loss on time!?} 0-1

[Event "Romanian Team Blitz Open 2022"]
[Site "Sebes"]
[Date "2022.12.04"]
[Round "2.12"]
[White "Bulau, Andrei-Cristian"]
[Black "Talu, Mircea"]
[Result "1-0"]
[ECO "E32"]
[WhiteElo "2154"]
[BlackElo "2327"]
[Annotator "TA"]
[PlyCount "83"]
[EventDate "2022.12.04"]
[EventType "blitz"]
[EventCountry "ROU"]
[SourceTitle "playchess.com"]
[Source "ChessBase"]
[SourceQuality "1"]
[TimeControl "180+2"]

{[%evp 10,83,22,9,16,0,11,-6,0,-3,-3,-10,0,-1,0,-1,0,0,0,0,2,-1,24,25,14,23,81,72,137,82,129,60,81,87,78,-22,63,-59,85,12,34,0,327,-50,-74,-310,-274,-929,-243,-254,-210,-236,-224,-219,-217,-189,-53,-55,0,0,0,0,0,0,0,0,0,0,0,0,0,0,0,0,0,0]} 1. d4 {[%emt 0:00:01]} Nf6 {[%emt 0:00:01]} 2. c4 {[%emt 0:00:02]} e6 {[%emt 0:00:02]} 3. Nc3 {[%emt 0:00:01]} Bb4 {[%emt 0:00:02]} 4. Qc2 {[%emt 0:00:02]} d6 {[%emt 0:00:02]} 5. Nf3 {[%emt 0:00:04]} O-O {[%emt 0:00:07]} 6. Bg5 {[%emt 0:00:09]} b6 {[%emt 0:00:17] E32: Nimzo-Indian: Classical (4 Qc2): 4...0-0.} 7. e3 {[%emt 0:00:16]} Bb7 {[%emt 0:00:05]} 8. Be2 {[%emt 0:00:02]} Nbd7 {[%emt 0:00:09][%cal Bb8d7,Bd7f6,Bf6e4][%mdl 32]} 9. O-O {[%emt 0:00:03]} Bxc3 {[%emt 0:00:02]} 10. Bxf6 {[%emt 0:00:10]} Nxf6 {[%emt 0:00:26]} 11. Qxc3 {[%emt 0:00:01]} Ne4 {[%emt 0:00:02]} 12. Qc2 {[%emt 0:00:01]} f5 {[%emt 0:00:03] [#]} 13. Rfd1 $146 {[%emt 0:00:28]} ({Predecessor:} 13. b4 a5 14. a3 Qf6 15. Bd3 Qg6 16. Rfc1 Nd2 17. Qxd2 Bxf3 18. Bf1 Rf6 19. Kh1 {0-1 (75) Hytonen,H (2091)-Karttunen,M (2427) Finland 2014}) 13... Rf6 {[%emt 0:00:12]} 14. d5 {[%emt 0:00:00]} Qe7 {[%emt 0:01:22]} 15. Rac1 {[%emt 0:00:30]} Raf8 {[%emt 0:00:11]} 16. Nd4 {[%emt 0:00:06]} e5 {[%emt 0:00:02]} 17. Ne6 {[%emt 0:00:15]} Rxe6 {[%emt 0:00:02]} (17... R8f7 $11) 18. dxe6 $16 {[%emt 0:00:01]} Qxe6 {[%emt 0:00:03]} (18... a5 $142) 19. Bf3 {[%emt 0:00:08]} ({White should play} 19. b4) 19... Qg6 {[%emt 0:00:03] Prevents c5.} (19... a5 $142) 20. Kh1 {[%emt 0:00:14]} ({White should try} 20. c5 $16) 20... f4 {[%emt 0:00:05]} 21. exf4 {[%emt 0:00:14]} Rxf4 {[%emt 0:00:02]} 22. Qe2 {[%emt 0:00:08] [#]} (22. c5 $1 $16 {[%cal Rc5d6] Black must now prevent cxd6.} bxc5 23. Qb3+ Rf7 24. Rc2 (24. Qxb7 Rxf3 25. Qd5+ Kf8 $11)) 22... Qf6 {[%emt 0:00:21]} (22... Nxf2+ $1 $11 23. Qxf2 e4) 23. c5 {[%emt 0:00:08] [#]} (23. Kg1 $14) 23... bxc5 {[%emt 0:00:03] [#]} (23... Rxf3 $1 $15 {stays ahead.} 24. c6 Ba6 $1 {[%mdl 512]} 25. Qxf3 Nxf2+ 26. Kg1 Qxf3 27. gxf3 Nxd1 28. Rxd1 Be2) 24. Rd3 {[%emt 0:00:12]} (24. Kg1 $1 $16) 24... c4 {[%emt 0:00:03]} 25. Ra3 {[%emt 0:00:07]} (25. Re3 $5 {[%cal Re2c4]} d5 26. Rf1 $11 (26. Bxe4 Rxf2 27. Bxh7+ Kh8 $11)) 25... a6 $2 {[%emt 0:00:01][%mdl 8192]} (25... d5 $11 {and Black stays safe.}) 26. Rxc4 $2 {[%emt 0:00:08]} (26. Qxc4+ $18 Qf7 27. Qxc7 Qxc7 28. Rxc7 Nxf2+ 29. Kg1 Bxf3 30. gxf3 Nh3+ 31. Kg2) 26... Nxf2+ $1 $15 {[%emt 0:00:02][%mdl 64] Deflection} 27. Qxf2 $2 {[%emt 0:00:01]} (27. Kg1 $17 Nh3+ 28. Kf1) 27... Rxc4 $19 {[%emt 0:00:01]} 28. h3 $2 {[%emt 0:00:18]} (28. Qd2 Rd4 29. Qe1) 28... Bxf3 $2 {[%emt 0:00:01]} (28... Rc1+ 29. Kh2 e4) 29. Rxf3 {[%emt 0:00:01]} Rf4 {[%emt 0:00:01]} 30. Rxf4 Qxf4 {[%emt 0:00:01][%mdl 4096] Endgame KQ-KQ} ({And not} 30... exf4 31. Qc2 $17) 31. Qc2 {[%emt 0:00:05]} Qf7 {[%emt 0:00:03]} 32. a4 {[%emt 0:00:02]} c5 {[%emt 0:00:02]} (32... Qf1+ $19 33. Kh2 c5) 33. Qd3 $15 {[%emt 0:00:02][%csl LRa6,LRd6]} a5 {[%emt 0:00:02]} ({Better is} 33... Qe6 $15 34. Qxa6 e4 35. Qa8+ Kf7) 34. Qxd6 $11 {[%emt 0:00:01] The position is equal.} Qf1+ {[%emt 0:00:01]} 35. Kh2 {[%emt 0:00:01]} Qf4+ {[%emt 0:00:01]} 36. Kh1 {[%emt 0:00:01]} Qf1+ {[%emt 0:00:04]} 37. Kh2 {[%emt 0:00:00]} Qf4+ 38. Kh1 h6 {[%emt 0:00:04]} 39. Qd5+ {[%emt 0:00:02]} Kh7 {[%emt 0:00:02]} 40. Qxc5 {[%emt 0:00:01]} Qf1+ {[%emt 0:00:03]} 41. Kh2 {[%emt 0:00:02]} Qf4+ {[%emt 0:00:02]} 42. Kh1 {[%emt 0:00:01][%mdl 32768] Whites escaped into a draw.   Weighted Error Value: White=0.63/Black=0.64. Sensor Board Error (Ke4/e5)?} 1-0

[Event "Romanian Team Blitz Open 2022"]
[Site "Sebes"]
[Date "2022.12.04"]
[Round "2.13"]
[White "Baratosi, Daniel"]
[Black "Miron, Lucian-Costin"]
[Result "0-1"]
[ECO "C84"]
[WhiteElo "2335"]
[BlackElo "2510"]
[Annotator "TA"]
[PlyCount "136"]
[EventDate "2022.12.04"]
[EventType "blitz"]
[EventCountry "ROU"]
[SourceTitle "playchess.com"]
[Source "ChessBase"]
[SourceQuality "1"]
[TimeControl "180+2"]

{[%evp 23,136,0,10,-12,-20,-14,-27,-52,-51,-65,-24,-78,-93,-78,-82,-90,-75,-95,-62,-77,-39,-183,-68,-95,-35,-33,-14,-14,-14,-14,-12,-13,-14,-33,-33,-29,-25,-39,-24,-74,-22,-36,-37,-56,-52,-85,-86,-99,-87,-141,-65,-83,-13,-14,-14,-14,-22,-25,0,-30,0,-8,-8,-27,-18,-30,0,0,0,-153,-153,-135,-131,-146,-131,-133,-15,-270,-268,-279,-237,-259,-161,-346,-325,-1018,-1023,-878,-857,-796,-747,-3325,-2908,-2900,-2686,-29965,-6266,-29973,-29974,-29972,-6041,-29974,-29975,-29975,-29976,-29978,-29979,-29979,-29980,-29980,-29981,-29982,-29981,-29981,-29982]} 1. e4 {[%emt 0:00:02]} e5 {[%emt 0:00:01][%cal Be7e5,Be5d4][%mdl 32]} 2. Nf3 {[%emt 0:00:01]} Nc6 {[%emt 0:00:01]} 3. Bb5 {[%emt 0:00:01]} a6 {[%emt 0:00:02]} 4. Ba4 {[%emt 0:00:01]} Nf6 {[%emt 0:00:01][%cal Bg8f6,Bf6e8,Be8d6][%mdl 32]} 5. d4 {[%emt 0:00:01]} exd4 {[%emt 0:00:47]} 6. O-O {[%emt 0:00:01]} Be7 {[%emt 0:00:07]} 7. Re1 {[%emt 0:00:01]} O-O {[%emt 0:00:10]} 8. e5 {[%emt 0:00:07]} Ne8 {[%emt 0:00:16]} 9. c3 {[%emt 0:00:11]} dxc3 {[%emt 0:00:06]} 10. Nxc3 {[%emt 0:00:02]} d6 {[%emt 0:00:02]} 11. exd6 {[%emt 0:00:11]} Nxd6 {[%emt 0:00:03]} 12. Nd5 {[%emt 0:00:04]} Be6 {[%emt 0:00:08]} 13. Bf4 {[%emt 0:00:05] C84: Closed Ruy Lopez: Unusual White 6th moves.} Nb5 {[%emt 0:00:45]} 14. Nxe7+ {[%emt 0:00:42]} Qxe7 {[%emt 0:00:06] [#]} 15. Bxb5 $146 {[%emt 0:00:21] Black has an edge.} ({Predecessor:} 15. Ng5 Qf6 16. Nxe6 fxe6 17. Bg3 Rad8 18. Qe2 Nbd4 19. Qg4 Rd5 20. Bxc6 bxc6 21. Qe4 {½-½ (32) Guimaraes,W (2260)-Van Riemsdijk,H (2375) Rio de Janeiro 1998}) 15... axb5 {[%emt 0:00:02]} 16. Ng5 {[%emt 0:00:05]} Ra4 {[%emt 0:00:09]} (16... Rxa2 $2 17. Rxa2 h6 18. Nxe6 fxe6 19. Bg3 $18) (16... h6 {simplifies} 17. Nxe6 fxe6 18. Bg3 Rfd8) 17. Qh5 {[%emt 0:00:14]} h6 $17 {[%emt 0:00:06]} (17... Rxf4 $2 18. Qxh7#) 18. Nxe6 {[%emt 0:00:03]} fxe6 {[%emt 0:00:03]} 19. Bg3 {[%emt 0:00:02]} Nd4 {[%emt 0:00:07]} 20. b3 {[%emt 0:00:28]} Ra6 {[%emt 0:00:03]} 21. Rac1 {[%emt 0:00:26] Against Nc2} c6 {[%emt 0:00:11]} (21... Rf5 $5 {[%cal Rf5h5]} 22. Rxc7 Qxc7 23. Qe8+ Rf8 24. Qxf8+ Kxf8 25. Bxc7 Rxa2 $15) 22. Qe5 {[%emt 0:00:19]} (22. Qg4 $1 $15 c5 23. b4) 22... Nf5 {[%emt 0:00:07]} ({Better is} 22... Rd8 $1 $19 23. Rcd1 Rd5) 23. Rc2 {[%emt 0:00:05]} Nxg3 {[%emt 0:00:11]} (23... Rd8 $1 $17) 24. hxg3 $15 {[%emt 0:00:01]} Re8 {[%emt 0:00:01]} 25. Rd2 {[%emt 0:00:05]} Raa8 {[%emt 0:00:03]} 26. Red1 {[%emt 0:00:02]} Qf7 {[%emt 0:00:05]} 27. Rd7 {[%emt 0:00:03]} Re7 {[%emt 0:00:01]} 28. Rd8+ {[%emt 0:00:01]} Rxd8 {[%emt 0:00:03]} 29. Rxd8+ {[%emt 0:00:02][%mdl 4096] Endgame KQR-KQR} Re8 {[%emt 0:00:01]} (29... Kh7 {seems wilder.} 30. Qe4+ Qf5 31. Qb4 Qb1+) 30. Rd3 {[%emt 0:00:10]} Qf5 {[%emt 0:00:02]} 31. Qe3 {[%emt 0:00:03]} (31. Qe2 $11) 31... Re7 {[%emt 0:00:05]} (31... e5 $17) 32. Rd8+ {[%emt 0:00:02]} Kh7 {[%emt 0:00:01]} 33. Rd1 {[%emt 0:00:01]} e5 {[%emt 0:00:03][%cal Be6e5,Be5e4][%mdl 32]} 34. f3 {[%emt 0:00:02]} e4 {[%emt 0:00:02]} 35. g4 {[%emt 0:00:01]} Qf6 {[%emt 0:00:05]} 36. Re1 {[%emt 0:00:03] [#]} ({White should play} 36. fxe4 Qe5 37. Re1) 36... Qb2 {[%emt 0:00:04]} (36... exf3 $1 $17 37. Qd3+ Kg8 38. Rxe7 f2+ 39. Kf1 Qxe7 40. Kxf2 Kf7) 37. fxe4 {[%emt 0:00:07]} Qxa2 {[%emt 0:00:01] Black is more active.} (37... Re5 $17 38. Re2 Qa3) 38. e5 $11 {[%emt 0:00:00]} Qc2 {[%emt 0:00:02]} 39. e6 {[%emt 0:00:00]} Qg6 {[%emt 0:00:01]} 40. Qe2 {[%emt 0:00:02]} Qf6 {[%emt 0:00:01]} 41. Qc2+ {[%emt 0:00:01]} Qg6 {[%emt 0:00:01]} (41... Kg8 $5 {[%cal Re7e6]} 42. Qe4 c5 $15) 42. Qf5 {[%emt 0:00:02]} h5 $36 {[%emt 0:00:05][%mdl 2048] White is under pressure.} 43. Qxh5+ {[%emt 0:00:02]} (43. Kf2 {is interesting.} Kh6 44. Kf3 Qxf5+ 45. gxf5 Kg5 46. Ke4) 43... Qxh5 {[%emt 0:00:01]} 44. gxh5 {[%emt 0:00:01] Threatens to win with Kf2. KR-KR} Kh6 {[%emt 0:00:01]} 45. Re5 {[%emt 0:00:08] Hoping for Kf2.} g6 {[%emt 0:00:01]} 46. hxg6 $2 {[%emt 0:00:00]} (46. g4 $11) 46... Kxg6 $17 {[%emt 0:00:02]} 47. Kf2 {[%emt 0:00:00]} Kf6 {[%emt 0:00:00][%csl LRe5,LRe6]} 48. Rh5 {[%emt 0:00:00]} Kxe6 {[%emt 0:00:02]} 49. g4 {[%emt 0:00:02]} Rg7 {[%emt 0:00:06]} ({Black should try} 49... Rd7 $17 {...Rd3 is the strong threat.} 50. Ke3 Rd1) 50. Kg3 $2 {[%emt 0:00:02][%mdl 8192]} (50. Kf3 $11 {and White stays safe.}) 50... Rd7 $1 $19 {[%emt 0:00:02]} 51. Kf4 {[%emt 0:00:02]} Rd4+ {[%emt 0:00:02]} 52. Kg5 {[%emt 0:00:01]} Rb4 {[%emt 0:00:02]} 53. Rh6+ $2 {[%emt 0:00:09]} (53. Rh3 {might work better.}) 53... Kd5 {[%emt 0:00:02]} 54. Kf5 $2 {[%emt 0:00:00]} (54. Rh1 Rxb3 55. Rd1+ Ke6 56. Re1+ Kf7 57. Rf1+ Kg7 58. Rd1) 54... Rxb3 {[%emt 0:00:02]} 55. g5 {[%emt 0:00:00]} Rf3+ {[%emt 0:00:03]} 56. Kg4 {[%emt 0:00:00]} Rf1 {[%emt 0:00:02]} 57. Rh2 {[%emt 0:00:00]} Rg1+ {[%emt 0:00:01]} 58. Kf5 {[%emt 0:00:01]} b4 {[%emt 0:00:02][%cal Bb5b4,Bb4b3,Bb3b2][%mdl 32]} 59. g6 {[%emt 0:00:03]} c5 {[%emt 0:00:01]} (59... b3 $142 60. Kf6 c5 61. Rd2+ Kc4 62. Rh2 Kc3 63. Rh3+ Kb4 64. Rh7 b2 65. Rxb7+ Kc3 66. g7 c4 67. Rb8 Kc2 68. g8=R Rxg8 69. Rxg8 b1=Q 70. Kf5 c3 71. Rg7 Kb3+ 72. Ke5 Qh1 73. Rg5 Qh2+ 74. Ke6 c2 75. Rc5 Qh6+ 76. Kf7 Qf4+ 77. Ke6 Qe3+ 78. Kd5 Qxc5+ $3 {[%mdl 512]} 79. Kxc5 c1=Q+ 80. Kd6 Qg5 81. Kd7 Kc4 82. Kd6 Kb5 83. Ke6 Kc6 84. Kf7 Kd7 85. Kf8 Ke6 86. Ke8 Qg8#) 60. Rd2+ {[%emt 0:00:04]} Kc4 {[%emt 0:00:02]} 61. Re2 {[%emt 0:00:01]} Kc3 {[%emt 0:00:04]} (61... b3 $142 62. g7 Rxg7 63. Rh2 Kb4 64. Rh1 c4 65. Kf6 {[#]} b2 $1 66. Kxg7 c3 67. Rb1 Kb3 68. Re1 c2 69. Rh1 b1=Q 70. Rh3+ Ka2 71. Rh5 Qb2+ 72. Kf7 c1=Q 73. Ra5+ Kb1 74. Kg6 Qc6+ 75. Kh7 Qcf6 76. Ra1+ Kxa1 77. Kg8 Qg7#) 62. Re4 {[%emt 0:00:03] [#]} Rxg6 $3 {[%emt 0:00:04][%mdl 512] Black mates.} 63. Kxg6 {[%emt 0:00:01] KR-K3P} b3 {[%emt 0:00:01]} 64. Kf5 {[%emt 0:00:02]} b2 {[%emt 0:00:01]} 65. Re1 {[%emt 0:00:02]} Kc2 {[%emt 0:00:01]} 66. Re2+ {[%emt 0:00:01]} Kb3 {[%emt 0:00:02]} 67. Re1 {[%emt 0:00:01]} Ka2 {[%emt 0:00:01]} 68. Re2 {[%emt 0:00:01]} Ka1 {[%emt 0:00:01] Weighted Error Value: White=0.75/Black=0.37} 0-1

[Event "Romanian Team Blitz Open 2022"]
[Site "Sebes"]
[Date "2022.12.04"]
[Round "2.14"]
[White "Secheres, Adrian-Simion"]
[Black "Nagy-Elek, Tamas"]
[Result "1-0"]
[ECO "E68"]
[WhiteElo "2365"]
[BlackElo "1976"]
[Annotator "TA"]
[PlyCount "81"]
[EventDate "2022.12.04"]
[EventType "blitz"]
[EventCountry "ROU"]
[SourceTitle "playchess.com"]
[Source "ChessBase"]
[SourceQuality "1"]
[TimeControl "180+2"]

{[%evp 17,81,58,62,63,162,123,135,139,175,193,400,386,384,381,373,97,283,93,285,271,301,170,271,243,235,83,89,99,92,50,52,57,56,56,54,-15,85,79,89,102,210,206,192,174,188,162,210,228,235,231,239,239,239,239,217,214,314,325,396,402,401,385,396,404,962,927]} 1. d4 {[%emt 0:00:03]} d6 {[%emt 0:00:01]} 2. c4 {[%emt 0:00:03]} e5 {[%emt 0:00:01]} 3. Nf3 {[%emt 0:00:03]} Nd7 {[%emt 0:00:00]} 4. Nc3 {[%emt 0:00:06]} g6 {[%emt 0:00:02]} 5. g3 {[%emt 0:00:08]} Bg7 {[%emt 0:00:01]} 6. Bg2 {[%emt 0:00:02]} Ngf6 {[%emt 0:00:03]} 7. O-O {[%emt 0:00:08]} O-O {[%emt 0:00:02]} 8. h3 {[%emt 0:00:05]} h6 {[%emt 0:00:24]} 9. e4 {[%emt 0:00:04]} Nh7 {[%emt 0:00:17]} 10. Be3 {[%emt 0:00:08] E68: King's Indian: Fianchetto: 6...Nbd7 7 0-0 e5 8 e4.} f5 {[%emt 0:00:11]} (10... Ng5 $14) 11. exf5 $18 {[%emt 0:00:16]} gxf5 {[%emt 0:00:02] [#]} 12. Qd2 $146 {[%emt 0:00:01] White is clearly better.} ({Predecessor:} 12. dxe5 dxe5 13. Qd5+ Rf7 14. Qd2 Qf8 15. Nh4 f4 16. Ng6 fxe3 17. fxe3 Qd6 18. Bd5 {1-0 (37) Bogosavljevic,B (2523)-Jusic,Z (2358) Osijek 2012}) 12... h5 {[%emt 0:01:14]} 13. Nh4 {[%emt 0:02:21]} f4 $2 {[%emt 0:00:07]} (13... c6 {might work better.}) 14. Bd5+ {[%emt 0:00:00]} Rf7 {[%emt 0:00:11]} 15. Bxf7+ {[%emt 0:00:00]} Kxf7 {[%emt 0:00:01]} 16. Qd3 {[%emt 0:00:00]} (16. dxe5 $1 $18 Nxe5 17. Bxf4) 16... Kg8 $2 {[%emt 0:00:19]} (16... Ndf8 $16) 17. Bd2 $2 {[%emt 0:00:00]} (17. Qg6 Ndf8 18. Qxh5 fxe3 19. fxe3 Qg5 20. Qxg5 (20. Qf3 exd4 21. exd4 Bxh3 $17) 20... Nxg5 $11) (17. dxe5 $1 $18 {White threatens Qd5+ and mate.} Ng5 18. Qd5+ (18. gxf4 Nxh3+ 19. Kg2 Qxh4 $17) 18... Kh7 19. Bxf4 (19. gxf4 Nxh3+ 20. Kg2 Qxh4 $15) 19... Nxh3+ 20. Kh1 Nxf4 21. Qe4+ Kg8 22. exd6 (22. Qxf4 Nxe5 23. Nd5 Bh3 $18)) 17... Ng5 $2 {[%emt 0:00:14]} (17... exd4 $16 {was worth a try.} 18. Nd5 (18. Qg6 $2 Ne5 $19) 18... Ne5) 18. gxf4 {[%emt 0:00:00]} exf4 {[%emt 0:00:09][%cal Od7e5]} 19. Bxf4 {[%emt 0:00:00]} (19. Ng6 $142) 19... Nf8 {[%emt 0:00:09]} (19... Nc5 $142 20. Qg3 (20. dxc5 Nxh3+ 21. Kh2 Qxh4 $16) 20... Nge4 21. Nxe4 Nxe4) 20. Bxg5 {[%emt 0:00:00]} ({Much less strong is} 20. Nf5 $6 Ng6 21. Nd5 Nxf4 22. Nxf4 Qf8 $18) 20... Qxg5+ {[%emt 0:00:01]} 21. Qg3 $2 {[%emt 0:00:00]} (21. Ng2 $1 $18 {and the rest is easy.}) 21... Qxg3+ $16 {[%emt 0:00:05]} 22. fxg3 {[%emt 0:00:00]} Bxh3 {[%emt 0:00:04]} 23. Rf4 {[%emt 0:00:00]} Ne6 {[%emt 0:00:02][%csl LRd4,LRf4]} 24. Re4 {[%emt 0:00:00] Kh2 is the strong threat.} Bxd4+ {[%emt 0:00:02]} 25. Kh2 {[%emt 0:00:00] Hoping for Rxd4.} Bg4 {[%emt 0:00:04]} 26. Nb5 {[%emt 0:00:00]} (26. Rae1 $14) 26... Bb6 {[%emt 0:00:02] A strong pair of Bishops.} (26... Bxb2 $11 {remains equal.} 27. Rf1 Rf8 28. Rxf8+ Kxf8 29. Nxa7 Ke8) 27. Rae1 $36 {[%emt 0:00:00][%cal Oe4g4][%mdl 2048] Black must now prevent Rxg4+! White is really pushing. White is more active.} a6 {[%emt 0:00:02] [#]} 28. Nc3 {[%emt 0:00:00]} Ng5 {[%emt 0:00:04]} (28... Nc5 $16 {is a better defense.}) 29. Rf4 $18 {[%emt 0:00:00] aiming for Rf6.} Rf8 {[%emt 0:00:02] Prevents Rf6.} 30. Rxf8+ {[%emt 0:00:34]} Kxf8 {[%emt 0:00:06] [#]} 31. Nd5 $1 {[%emt 0:00:00] Inhibits c6.} Ne6 {[%emt 0:00:00]} (31... Bd4 {keeps fighting.} 32. Nxc7 Bxb2) 32. Nxb6 {[%emt 0:00:00]} cxb6 {[%emt 0:00:00][%mdl 4096] Endgame KRN-KBN} 33. Kg2 {[%emt 0:00:00]} Ke7 {[%emt 0:00:00]} 34. Kf2 {[%emt 0:00:00]} Kd7 {[%emt 0:00:01]} 35. Ng2 {[%emt 0:00:00]} Ng5 {[%emt 0:00:03]} 36. Ke3 {[%emt 0:00:00]} Be6 {[%emt 0:00:03]} (36... Nf3 $142) 37. b3 {[%emt 0:00:00]} Nf7 {[%emt 0:00:02]} 38. Nf4 {[%emt 0:00:00]} Bg4 {[%emt 0:00:01]} 39. Rh1 {[%emt 0:00:00]} Ne5 {[%emt 0:00:04]} 40. Nxh5 {[%emt 0:00:00]} Nc6 {[%emt 0:00:02]} (40... Bf3 $142) 41. Nf6+ {[%emt 0:00:00] Weighted Error Value: White=0.35/Black=0.61} 1-0

[Event "Romanian Team Blitz Open 2022"]
[Site "Sebes"]
[Date "2022.12.04"]
[Round "2.15"]
[White "Chiheri, Alexandru-Virgil"]
[Black "Nastore, Pavel-Alexandru"]
[Result "0-1"]
[ECO "B90"]
[WhiteElo "1937"]
[BlackElo "2218"]
[Annotator "TA"]
[PlyCount "58"]
[EventDate "2022.12.04"]
[EventType "blitz"]
[EventCountry "ROU"]
[SourceTitle "playchess.com"]
[Source "ChessBase"]
[SourceQuality "1"]
[TimeControl "180+2"]

{[%evp 9,58,17,20,0,23,17,34,8,25,12,13,5,27,24,40,35,32,0,6,-52,71,0,0,-52,19,28,87,110,90,-46,-80,-75,35,29,58,-18,-11,-13,28,26,27,30,110,0,0,-1023,-963,-29988,-29989,-29991,-29992]} 1. e4 {[%emt 0:03:04]} c5 2. Nf3 {[%emt 0:00:02]} d6 3. d4 {[%emt 0:00:02]} cxd4 4. Nxd4 {[%emt 0:00:02]} Nf6 5. Nc3 {[%emt 0:00:02]} a6 6. Qd3 {[%emt 0:00:02] B90: Sicilian Najdorf: Unusual White 6th moves, 6 Be3 Ng4 and 6 Be3 e5.} e5 {[%emt 0:03:14]} 7. Nb3 {[%emt 0:00:02] [#]} h6 $146 {[%emt 0:00:02]} ({Predecessor:} 7... Nc6 8. Bg5 Be7 9. O-O-O Be6 10. Bxf6 gxf6 11. Nd5 Rc8 12. Kb1 b5 13. Be2 Bxd5 14. Qxd5 Nb4 15. Qd2 d5 16. c3 Nc6 17. exd5 {1-0 (17) Fawzy,A (2467)-Maksimenko,V (2239) Chess.com INT 2021}) 8. f3 {[%emt 0:00:02] White is slightly better.} Be6 {[%emt 0:00:02]} 9. Be3 {[%emt 0:00:02]} Nbd7 {[%emt 0:00:02]} 10. O-O-O Rc8 {[%emt 0:00:02]} 11. Kb1 {[%emt 0:00:04]} Be7 {[%emt 0:00:02]} 12. g4 {[%emt 0:00:02]} b5 {[%emt 0:00:02]} 13. Qd2 {[%emt 0:00:02]} (13. h4 $5 {[%cal Rf1h3]}) 13... Nb6 {[%emt 0:00:02]} 14. Qf2 {[%emt 0:00:02] [#]} (14. Bd3 $11) 14... Nc4 {[%emt 0:00:02]} (14... Rxc3 $1 $15 {keeps the upper hand.} 15. Bxb6 (15. bxc3 Na4 $15) 15... Rxf3 16. Qxf3 Qxb6) 15. Bc1 {[%emt 0:00:02]} (15. Bxc4 $16 Bxc4 16. h4) 15... Qc7 {[%emt 0:00:02]} 16. Bd3 {[%emt 0:00:02]} (16. h4 $11) 16... Rb8 {[%emt 0:00:02]} (16... b4 $1 $15 17. Na4 Rb8) 17. h4 $1 $11 {[%emt 0:00:02]} a5 {[%emt 0:00:02]} (17... b4 $11 18. Ne2 h5) 18. g5 $16 {[%emt 0:00:02]} Nh5 {[%emt 0:00:02]} 19. Ne2 {[%emt 0:00:02]} (19. gxh6 $16 gxh6 20. f4) 19... a4 $15 {[%emt 0:00:02]} 20. Nd2 {[%emt 0:00:02]} Na5 {[%emt 0:00:02] Black has more active pieces.} (20... a3 $17 {White must now prevent ...Nxb2.} 21. b3 {[#]} Qa5 $1) 21. f4 $14 {[%emt 0:00:02]} exf4 {[%emt 0:00:02]} 22. Nxf4 (22. Nf3 $1 $14) 22... Nxf4 $11 {[%emt 0:00:02]} 23. Qxf4 {[%emt 0:00:04]} b4 {[%emt 0:00:02]} (23... Nc6 $5 {[%cal Rc6b4]}) 24. b3 {[%emt 0:00:02]} axb3 {[%emt 0:00:02]} 25. cxb3 {[%emt 0:00:02]} Qc3 {[%emt 0:00:02]} (25... Qc5 $11) 26. Nf3 {[%emt 0:00:02]} (26. Qe3 $16 {Strongly threatening Bb2.} Qc5 27. Nf3) 26... hxg5 $40 {[%emt 0:00:02][%mdl 128] Black is up to no good. Really sharp!} (26... Nxb3 $2 27. Bb2 Qc5 28. axb3 Bxb3 29. Bxg7 hxg5 30. hxg5 $18) 27. hxg5 {[%emt 0:00:02][%mdl 8192]} (27. Qh2 $11) 27... Rxh1 $19 {[%emt 0:00:02]} 28. Rxh1 {[%emt 0:00:02]} Qxd3+ {[%emt 0:00:02]} 29. Ka1 {[%emt 0:00:02] [#]} Nxb3+ $1 {[%emt 0:00:02] Weighted Error Value: White=0.64/Black=0.27 (precise)} 0-1